[Event "*** Titled Tuesday Blitz"]
[Site "Chess.com"]
[Date "2018.06.05"]
[Round "6"]
[White "GMCanty"]
[Black "florianschwabeneder"]
[Result "0-1"]
[WhiteElo "2191"]
[BlackElo "2377"]
[TimeControl "180+2"]
[EndTime "14:24:46 PDT"]
[Termination "florianschwabeneder won by resignation"]

1. e4 {[%clk 0:03:01.6]} 1... a6 {[%clk 0:03:01.2]} 2. d4 {[%clk 0:03:01.3]}
2... d6 {[%clk 0:03:02.5]} 3. Bd3 {[%clk 0:03:01.9]} 3... g6 {[%clk 0:03:02.7]}
4. Nf3 {[%clk 0:03:00.8]} 4... Bg7 {[%clk 0:03:03.9]} 5. Nc3 {[%clk 0:03:01.6]}
5... b5 {[%clk 0:03:04.7]} 6. a3 {[%clk 0:03:01.5]} 6... Bb7 {[%clk 0:03:05.7]}
7. Be3 {[%clk 0:03:01.5]} 7... e6 {[%clk 0:03:07.1]} 8. h4 {[%clk 0:03:01.3]}
8... h6 {[%clk 0:03:07.7]} 9. Qe2 {[%clk 0:02:57.7]} 9... Nd7 {[%clk 0:03:08.1]}
10. Rd1 {[%clk 0:02:54.7]} 10... Qe7 {[%clk 0:03:08.3]} 11. b4 {[%clk 0:02:49]}
11... Ngf6 {[%clk 0:03:07.1]} 12. Bd2 {[%clk 0:02:42.7]} 12... O-O {[%clk
0:03:07.4]} 13. e5 {[%clk 0:02:32.1]} 13... dxe5 {[%clk 0:03:07]} 14. dxe5
{[%clk 0:02:33.6]} 14... Nd5 {[%clk 0:03:08.2]} 15. Ne4 {[%clk 0:02:32.3]} 15...
c5 {[%clk 0:03:07.6]} 16. Nd6 {[%clk 0:02:07.7]} 16... Bc6 {[%clk 0:03:08.4]}
17. h5 {[%clk 0:01:57]} 17... c4 {[%clk 0:02:58.4]} 18. Be4 {[%clk 0:01:44.7]}
18... g5 {[%clk 0:02:58.8]} 19. Nxg5 {[%clk 0:01:38.8]} 19... hxg5 {[%clk
0:02:59.5]} 20. h6 {[%clk 0:01:39.7]} 20... Bxe5 {[%clk 0:03:00.5]} 21. Qh5
{[%clk 0:01:26.7]} 21... Bxd6 {[%clk 0:02:45.3]} 22. Bxg5 {[%clk 0:00:42.6]}
22... f6 {[%clk 0:02:46.1]} 23. h7+ {[%clk 0:00:41.1]} 23... Kh8 {[%clk
0:02:47.1]} 24. Bh6 {[%clk 0:00:42.2]} 24... Rf7 {[%clk 0:02:44.9]} 25. Bg6
{[%clk 0:00:28.2]} 25... Ne5 {[%clk 0:02:39.6]} 0-1

[Event "*** Titled Tuesday Blitz"]
[Site "Chess.com"]
[Date "2018.06.05"]
[Round "6"]
[White "Caterpiller35"]
[Black "maciek_92"]
[Result "0-1"]
[WhiteElo "2356"]
[BlackElo "2610"]
[TimeControl "180+2"]
[EndTime "14:24:57 PDT"]
[Termination "maciek_92 won by resignation"]

1. d4 {[%clk 0:03:01.9]} 1... Nf6 {[%clk 0:02:59.9]} 2. Bf4 {[%clk 0:03:02.6]}
2... d5 {[%clk 0:03:01]} 3. e3 {[%clk 0:03:03.2]} 3... c5 {[%clk 0:03:02.3]} 4.
c3 {[%clk 0:03:04]} 4... Nc6 {[%clk 0:03:03.6]} 5. Nd2 {[%clk 0:03:04.3]} 5...
Bf5 {[%clk 0:03:04.9]} 6. Qb3 {[%clk 0:03:03.6]} 6... Qb6 {[%clk 0:03:01.1]} 7.
dxc5 {[%clk 0:03:04.6]} 7... Qxb3 {[%clk 0:02:58.8]} 8. axb3 {[%clk 0:03:06.5]}
8... e5 {[%clk 0:02:58.6]} 9. Bg3 {[%clk 0:03:07.9]} 9... Bxc5 {[%clk 0:03:00]}
10. Ngf3 {[%clk 0:03:08.7]} 10... Nd7 {[%clk 0:02:55.8]} 11. b4 {[%clk
0:03:07.2]} 11... Bd6 {[%clk 0:02:55.6]} 12. Bb5 {[%clk 0:02:57.5]} 12... f6
{[%clk 0:02:54.7]} 13. O-O {[%clk 0:02:55]} 13... Ke7 {[%clk 0:02:50]} 14. Rfd1
{[%clk 0:02:47.8]} 14... h5 {[%clk 0:02:42.9]} 15. Bxc6 {[%clk 0:02:37.9]} 15...
bxc6 {[%clk 0:02:43]} 16. Ra6 {[%clk 0:02:37.7]} 16... g5 {[%clk 0:02:40.7]} 17.
h4 {[%clk 0:02:14.7]} 17... g4 {[%clk 0:02:36]} 18. Ne1 {[%clk 0:02:14.3]} 18...
c5 {[%clk 0:02:29]} 19. e4 {[%clk 0:02:07.4]} 19... dxe4 {[%clk 0:02:23.8]} 20.
Nxe4 {[%clk 0:02:00.5]} 20... Bxe4 {[%clk 0:02:25.7]} 21. Raxd6 {[%clk
0:02:00.4]} 21... Rhd8 {[%clk 0:02:21.7]} 22. Nd3 {[%clk 0:01:42.2]} 22... Kxd6
{[%clk 0:02:16.5]} 23. Nxc5+ {[%clk 0:01:43.1]} 23... Ke7 {[%clk 0:02:16.2]} 24.
Nxe4 {[%clk 0:01:43.2]} 24... Nb6 {[%clk 0:02:17.1]} 25. Ra1 {[%clk 0:01:40.2]}
25... Nc4 {[%clk 0:02:16.7]} 26. Ra6 {[%clk 0:01:37]} 26... f5 {[%clk
0:02:14.4]} 27. Nc5 {[%clk 0:01:35]} 27... f4 {[%clk 0:02:14.4]} 28. Re6+ {[%clk
0:01:22.6]} 28... Kf7 {[%clk 0:02:13.5]} 29. Rh6 {[%clk 0:01:23.5]} 29... Rd1+
{[%clk 0:02:07.6]} 30. Kh2 {[%clk 0:01:24]} 30... Nd2 {[%clk 0:02:09]} 0-1

[Event "*** Titled Tuesday Blitz"]
[Site "Chess.com"]
[Date "2018.06.05"]
[Round "6"]
[White "plouarzel"]
[Black "Hollywood_Chess"]
[Result "1-0"]
[WhiteElo "2416"]
[BlackElo "2216"]
[TimeControl "180+2"]
[EndTime "14:25:29 PDT"]
[Termination "plouarzel won by resignation"]

1. e4 {[%clk 0:03:01]} 1... c5 {[%clk 0:03:00.3]} 2. Nf3 {[%clk 0:03:01.9]} 2...
g6 {[%clk 0:03:01.8]} 3. d4 {[%clk 0:03:02.4]} 3... cxd4 {[%clk 0:03:03.3]} 4.
Qxd4 {[%clk 0:03:04.3]} 4... Nf6 {[%clk 0:03:03.8]} 5. e5 {[%clk 0:03:05.8]}
5... Nc6 {[%clk 0:03:00.7]} 6. Qa4 {[%clk 0:03:07.2]} 6... Nd5 {[%clk
0:03:01.5]} 7. Qb3 {[%clk 0:03:08.1]} 7... Nc7 {[%clk 0:02:42.6]} 8. Nc3 {[%clk
0:03:07.3]} 8... Bg7 {[%clk 0:02:41.9]} 9. Bf4 {[%clk 0:03:04.7]} 9... O-O
{[%clk 0:02:41.6]} 10. O-O-O {[%clk 0:03:04.6]} 10... Ne6 {[%clk 0:02:42.3]} 11.
Bg3 {[%clk 0:03:06.1]} 11... a6 {[%clk 0:02:39.2]} 12. Kb1 {[%clk 0:03:06.3]}
12... b5 {[%clk 0:02:40.1]} 13. h4 {[%clk 0:03:07.8]} 13... Qc7 {[%clk
0:02:30.7]} 14. Nd5 {[%clk 0:03:06.4]} 14... Qb8 {[%clk 0:02:31.4]} 15. h5
{[%clk 0:03:07.8]} 15... Re8 {[%clk 0:02:28.6]} 16. hxg6 {[%clk 0:03:08.3]}
16... hxg6 {[%clk 0:02:27.6]} 17. Qe3 {[%clk 0:02:57.4]} 17... a5 {[%clk
0:02:09.5]} 18. Qe4 {[%clk 0:02:56.2]} 18... Nb4 {[%clk 0:01:40]} 19. Qh4 {[%clk
0:02:52.3]} 19... Nxd5 {[%clk 0:01:37.6]} 20. Rxd5 {[%clk 0:02:54.2]} 20... b4
{[%clk 0:01:24]} 21. Bd3 {[%clk 0:02:53.7]} 21... Bb7 {[%clk 0:01:13.8]} 22.
Rxd7 {[%clk 0:02:51.5]} 22... Bxf3 {[%clk 0:01:13.1]} 23. gxf3 {[%clk 0:02:51]}
23... Ra7 {[%clk 0:01:03.8]} 24. Rxa7 {[%clk 0:02:46.5]} 24... Qxa7 {[%clk
0:01:04.6]} 25. f4 {[%clk 0:02:38.8]} 25... Nc5 {[%clk 0:00:49.4]} 26. f5 {[%clk
0:02:37.4]} 26... Nxd3 {[%clk 0:00:48.1]} 27. f6 {[%clk 0:02:37.8]} 27... exf6
{[%clk 0:00:39.6]} 28. exf6 {[%clk 0:02:39.7]} 28... Re1+ {[%clk 0:00:35.8]} 29.
Rxe1 {[%clk 0:02:36.7]} 29... Nxe1 {[%clk 0:00:37.4]} 30. fxg7 {[%clk
0:02:37.3]} 30... Kxg7 {[%clk 0:00:32.4]} 31. Be5+ {[%clk 0:02:38.7]} 31... f6
{[%clk 0:00:24.3]} 32. Bxf6+ {[%clk 0:02:38.6]} 32... Kf8 {[%clk 0:00:21.5]} 33.
Qh8+ {[%clk 0:02:39.4]} 33... Kf7 {[%clk 0:00:22.9]} 34. Qh7+ {[%clk 0:02:40.9]}
1-0

[Event "*** Titled Tuesday Blitz"]
[Site "Chess.com"]
[Date "2018.06.05"]
[Round "6"]
[White "kleinebeer98"]
[Black "FairChess_on_YouTube"]
[Result "0-1"]
[WhiteElo "2480"]
[BlackElo "2957"]
[TimeControl "180+2"]
[EndTime "14:25:33 PDT"]
[Termination "FairChess_on_YouTube won by resignation"]

1. e4 {[%clk 0:03:01.9]} 1... c5 {[%clk 0:03:00.7]} 2. Nf3 {[%clk 0:03:02.8]}
2... e6 {[%clk 0:03:02.1]} 3. b3 {[%clk 0:03:03.3]} 3... b6 {[%clk 0:03:01.6]}
4. Bd3 {[%clk 0:03:04.7]} 4... Nc6 {[%clk 0:03:00.8]} 5. O-O {[%clk 0:03:04.9]}
5... Bb7 {[%clk 0:03:01.1]} 6. Re1 {[%clk 0:03:06]} 6... d6 {[%clk 0:02:49.8]}
7. Bb2 {[%clk 0:03:03.6]} 7... Nge7 {[%clk 0:02:50.4]} 8. c3 {[%clk 0:02:57.8]}
8... Ng6 {[%clk 0:02:42.4]} 9. Bf1 {[%clk 0:02:46.9]} 9... d5 {[%clk 0:02:41]}
10. exd5 {[%clk 0:02:40.1]} 10... Qxd5 {[%clk 0:02:41.4]} 11. Na3 {[%clk
0:02:40.2]} 11... Be7 {[%clk 0:02:34.8]} 12. c4 {[%clk 0:02:21.4]} 12... Qh5
{[%clk 0:02:35.3]} 13. Bxg7 {[%clk 0:02:11.2]} 13... Rg8 {[%clk 0:02:35.7]} 14.
Bb2 {[%clk 0:02:13.1]} 14... Nf4 {[%clk 0:02:22.4]} 15. g3 {[%clk 0:02:09.4]}
15... O-O-O {[%clk 0:02:20.1]} 16. Ne5 {[%clk 0:02:02.6]} 16... Nh3+ {[%clk
0:02:03.1]} 17. Bxh3 {[%clk 0:01:59.8]} 17... Qxh3 {[%clk 0:02:05]} 18. f3
{[%clk 0:01:40.2]} 18... Rxg3+ {[%clk 0:01:56.2]} 19. hxg3 {[%clk 0:01:35.3]}
19... Qxg3+ {[%clk 0:01:57.2]} 20. Kf1 {[%clk 0:01:25.2]} 20... Rg8 {[%clk
0:01:36.5]} 21. Ng4 {[%clk 0:01:05.3]} 21... Qh3+ {[%clk 0:01:35.3]} 22. Kg1
{[%clk 0:00:54.2]} 22... Rxg4+ {[%clk 0:01:24.3]} 23. fxg4 {[%clk 0:00:53.8]}
23... Nd4 {[%clk 0:01:25.2]} 24. Kf2 {[%clk 0:00:42.7]} 24... Bh4+ {[%clk
0:01:25.1]} 0-1

[Event "*** Titled Tuesday Blitz"]
[Site "Chess.com"]
[Date "2018.06.05"]
[Round "6"]
[White "Tash_Boy"]
[Black "ezkybel"]
[Result "1-0"]
[WhiteElo "2680"]
[BlackElo "2352"]
[TimeControl "180+2"]
[EndTime "14:25:33 PDT"]
[Termination "Tash_Boy won by resignation"]

1. e4 {[%clk 0:03:01.9]} 1... e6 {[%clk 0:03:01.9]} 2. d4 {[%clk 0:02:56.4]}
2... d5 {[%clk 0:03:02.9]} 3. Nc3 {[%clk 0:02:57]} 3... dxe4 {[%clk 0:03:03.7]}
4. Nxe4 {[%clk 0:02:57.8]} 4... Bd7 {[%clk 0:03:03.1]} 5. Nf3 {[%clk 0:02:57.8]}
5... Bc6 {[%clk 0:03:04.4]} 6. Bd3 {[%clk 0:02:59.1]} 6... Nf6 {[%clk
0:03:04.3]} 7. Ng3 {[%clk 0:02:58.6]} 7... Be7 {[%clk 0:03:01.9]} 8. O-O {[%clk
0:02:59.1]} 8... Bxf3 {[%clk 0:03:02.8]} 9. Qxf3 {[%clk 0:02:59.5]} 9... c6
{[%clk 0:03:04.7]} 10. c3 {[%clk 0:02:58]} 10... Nbd7 {[%clk 0:03:04.3]} 11. a4
{[%clk 0:02:59.3]} 11... Qc7 {[%clk 0:03:04.1]} 12. a5 {[%clk 0:02:58.9]} 12...
a6 {[%clk 0:03:05.1]} 13. Re1 {[%clk 0:02:57]} 13... O-O-O {[%clk 0:02:43.7]}
14. b4 {[%clk 0:02:53.6]} 14... h5 {[%clk 0:02:39.9]} 15. h3 {[%clk 0:02:48.5]}
15... h4 {[%clk 0:02:36.1]} 16. Nf1 {[%clk 0:02:48.9]} 16... Bd6 {[%clk
0:02:36.8]} 17. Rb1 {[%clk 0:02:46.4]} 17... Nd5 {[%clk 0:02:35.3]} 18. Bd2
{[%clk 0:02:38.2]} 18... g5 {[%clk 0:02:34.7]} 19. c4 {[%clk 0:02:38.3]} 19...
g4 {[%clk 0:02:35.5]} 20. Qxg4 {[%clk 0:02:29.8]} 20... Rdg8 {[%clk 0:02:35]}
21. Qf3 {[%clk 0:02:29.9]} 21... Nf4 {[%clk 0:02:35.2]} 22. Bxf4 {[%clk
0:02:30.7]} 22... Bxf4 {[%clk 0:02:36.4]} 23. b5 {[%clk 0:02:32]} 23... Rg5
{[%clk 0:02:24.1]} 24. bxc6 {[%clk 0:02:28.6]} 24... Rhg8 {[%clk 0:02:11.6]} 25.
cxd7+ {[%clk 0:02:25.1]} 25... Kd8 {[%clk 0:02:12.7]} 26. Be4 {[%clk 0:02:16.3]}
26... Rxg2+ {[%clk 0:02:05.4]} 27. Qxg2 {[%clk 0:02:16.6]} 27... Rxg2+ {[%clk
0:02:06.6]} 28. Bxg2 {[%clk 0:02:17.4]} 28... Qxa5 {[%clk 0:02:02.7]} 29. Bxb7
{[%clk 0:02:06.9]} 29... Kxd7 {[%clk 0:01:53.5]} 30. c5 {[%clk 0:02:07.4]} 30...
Bc7 {[%clk 0:01:51.5]} 31. Bg2 {[%clk 0:02:05.4]} 31... f5 {[%clk 0:01:45.7]}
32. Ne3 {[%clk 0:02:05.6]} 32... f4 {[%clk 0:01:45.6]} 33. Ng4 {[%clk
0:02:05.1]} 33... Qa3 {[%clk 0:01:34.7]} 34. c6+ {[%clk 0:02:02.8]} 34... Kd6
{[%clk 0:01:34.3]} 35. Ne5 {[%clk 0:02:03.6]} 35... Ke7 {[%clk 0:01:29.9]} 36.
Rb7 {[%clk 0:02:02]} 36... Qd6 {[%clk 0:01:26.2]} 37. Nc4 {[%clk 0:02:01.7]}
37... Qxd4 {[%clk 0:01:20]} 38. Rxc7+ {[%clk 0:02:02]} 38... Kf6 {[%clk
0:01:21.4]} 39. Ne5 {[%clk 0:02:02]} 39... Qd2 {[%clk 0:01:20.9]} 40. Ng4+
{[%clk 0:02:00]} 40... Kg6 {[%clk 0:01:20.7]} 41. Rxe6+ {[%clk 0:01:59.9]} 1-0

[Event "*** Titled Tuesday Blitz"]
[Site "Chess.com"]
[Date "2018.06.05"]
[Round "6"]
[White "Aygehovit1992"]
[Black "OK97"]
[Result "1-0"]
[WhiteElo "2527"]
[BlackElo "2645"]
[TimeControl "180+2"]
[EndTime "14:25:52 PDT"]
[Termination "Aygehovit1992 won by resignation"]

1. e4 {[%clk 0:03:01.9]} 1... g6 {[%clk 0:03:01.1]} 2. d4 {[%clk 0:03:03.1]}
2... Bg7 {[%clk 0:03:01.9]} 3. Nc3 {[%clk 0:03:04.6]} 3... d6 {[%clk 0:03:03.3]}
4. f4 {[%clk 0:03:05.2]} 4... Nf6 {[%clk 0:03:04.4]} 5. Nf3 {[%clk 0:03:06.6]}
5... O-O {[%clk 0:03:05.5]} 6. e5 {[%clk 0:03:07.2]} 6... dxe5 {[%clk
0:03:06.1]} 7. fxe5 {[%clk 0:03:07.9]} 7... Nd5 {[%clk 0:03:07.6]} 8. Bc4 {[%clk
0:03:04.2]} 8... Nxc3 {[%clk 0:03:08.4]} 9. bxc3 {[%clk 0:03:04.7]} 9... c5
{[%clk 0:03:09.8]} 10. O-O {[%clk 0:03:03.2]} 10... Bg4 {[%clk 0:03:10.8]} 11.
h3 {[%clk 0:03:02.1]} 11... Bxf3 {[%clk 0:03:11.7]} 12. Qxf3 {[%clk 0:03:02.8]}
12... Nc6 {[%clk 0:03:12.6]} 13. Bxf7+ {[%clk 0:03:02.8]} 13... Kh8 {[%clk
0:03:13.6]} 14. e6 {[%clk 0:03:00.1]} 14... cxd4 {[%clk 0:03:13]} 15. Rb1 {[%clk
0:02:55.8]} 15... dxc3 {[%clk 0:03:03.4]} 16. Rxb7 {[%clk 0:02:55.6]} 16... Ne5
{[%clk 0:02:40.8]} 17. Qe4 {[%clk 0:02:46.8]} 17... Rb8 {[%clk 0:01:44.9]} 18.
Rxb8 {[%clk 0:02:16.4]} 18... Qxb8 {[%clk 0:01:46.8]} 19. Bg5 {[%clk 0:02:15.8]}
19... Qd6 {[%clk 0:01:29.4]} 20. Kh1 {[%clk 0:02:16]} 20... Nxf7 {[%clk
0:00:39.8]} 21. exf7 {[%clk 0:02:14.1]} 21... Bf6 {[%clk 0:00:40.9]} 22. Rxf6
{[%clk 0:02:04]} 22... exf6 {[%clk 0:00:35.6]} 23. Bh6 {[%clk 0:02:02.7]} 23...
Qd1+ {[%clk 0:00:19]} 24. Kh2 {[%clk 0:02:03.4]} 24... Qd6+ {[%clk 0:00:20.5]}
25. g3 {[%clk 0:02:00.7]} 25... Rxf7 {[%clk 0:00:12]} 26. Qe8+ {[%clk
0:02:00.5]} 26... Rf8 {[%clk 0:00:13.2]} 27. Qxf8+ {[%clk 0:02:01.3]} 27... Qxf8
{[%clk 0:00:08.2]} 28. Bxf8 {[%clk 0:02:02.8]} 28... Kg8 {[%clk 0:00:10.1]} 29.
Bb4 {[%clk 0:02:03.7]} 1-0

[Event "*** Titled Tuesday Blitz"]
[Site "Chess.com"]
[Date "2018.06.05"]
[Round "6"]
[White "olomi007"]
[Black "Gareth-Bale11"]
[Result "1-0"]
[WhiteElo "2643"]
[BlackElo "2445"]
[TimeControl "180+2"]
[EndTime "14:25:52 PDT"]
[Termination "olomi007 won by resignation"]

1. e4 {[%clk 0:03:01.9]} 1... e5 {[%clk 0:01:58.2]} 2. Nf3 {[%clk 0:03:01.6]}
2... Nc6 {[%clk 0:01:58.2]} 3. Bb5 {[%clk 0:03:02.3]} 3... a6 {[%clk 0:01:58.7]}
4. Ba4 {[%clk 0:03:03.3]} 4... Nf6 {[%clk 0:01:56.6]} 5. O-O {[%clk 0:03:04]}
5... Nxe4 {[%clk 0:01:53.2]} 6. d4 {[%clk 0:03:04.2]} 6... b5 {[%clk 0:01:54.4]}
7. Bb3 {[%clk 0:03:04.6]} 7... d5 {[%clk 0:01:55.9]} 8. dxe5 {[%clk 0:03:05.7]}
8... Be6 {[%clk 0:01:56.3]} 9. Be3 {[%clk 0:03:07.3]} 9... Be7 {[%clk
0:01:54.8]} 10. c3 {[%clk 0:03:07.4]} 10... O-O {[%clk 0:01:54.8]} 11. Re1
{[%clk 0:03:07.8]} 11... Nc5 {[%clk 0:01:47.4]} 12. Bc2 {[%clk 0:03:04.4]} 12...
Bg4 {[%clk 0:01:48.4]} 13. h3 {[%clk 0:03:00]} 13... Bh5 {[%clk 0:01:45.8]} 14.
Bxh7+ {[%clk 0:02:48.1]} 14... Kxh7 {[%clk 0:01:37.8]} 15. Ng5+ {[%clk
0:02:48.8]} 15... Bxg5 {[%clk 0:01:34.8]} 16. Qxh5+ {[%clk 0:02:49.3]} 16... Bh6
{[%clk 0:01:34.6]} 17. Bxc5 {[%clk 0:02:50.3]} 17... Qd7 {[%clk 0:01:33.2]} 18.
Bxf8 {[%clk 0:02:48.1]} 18... Rxf8 {[%clk 0:01:31.2]} 19. Nd2 {[%clk 0:02:42.6]}
19... d4 {[%clk 0:01:23.1]} 20. Nf3 {[%clk 0:02:39.5]} 20... d3 {[%clk 0:01:19]}
21. Rad1 {[%clk 0:02:35.6]} 21... Rd8 {[%clk 0:01:16.7]} 22. Ng5+ {[%clk
0:02:31.7]} 22... Kg8 {[%clk 0:01:16.1]} 23. e6 {[%clk 0:02:24.4]} 23... fxe6
{[%clk 0:01:18]} 24. Nxe6 {[%clk 0:02:10.7]} 24... Re8 {[%clk 0:01:08.1]} 25.
Ng5 {[%clk 0:01:56.8]} 25... Rf8 {[%clk 0:01:00.6]} 26. Qg6 {[%clk 0:01:55.8]}
26... Qf5 {[%clk 0:00:40.2]} 27. Qxf5 {[%clk 0:01:56.4]} 27... Rxf5 {[%clk
0:00:42.1]} 28. Re8+ {[%clk 0:01:57]} 28... Rf8 {[%clk 0:00:41.7]} 29. Rxf8+
{[%clk 0:01:57.9]} 29... Kxf8 {[%clk 0:00:43.6]} 30. h4 {[%clk 0:01:53.5]} 30...
Ne5 {[%clk 0:00:42]} 31. f4 {[%clk 0:01:53.5]} 31... Nc4 {[%clk 0:00:41.6]} 32.
b3 {[%clk 0:01:50.6]} 32... Nb2 {[%clk 0:00:42.7]} 33. Rd2 {[%clk 0:01:51]}
33... b4 {[%clk 0:00:44.6]} 34. cxb4 {[%clk 0:01:50.8]} 1-0

[Event "*** Titled Tuesday Blitz"]
[Site "Chess.com"]
[Date "2018.06.05"]
[Round "6"]
[White "colegiodemadrid"]
[Black "talento10"]
[Result "0-1"]
[WhiteElo "2274"]
[BlackElo "2185"]
[TimeControl "180+2"]
[EndTime "14:26:06 PDT"]
[Termination "talento10 won on time"]

1. e4 {[%clk 0:03:01.9]} 1... c5 {[%clk 0:02:56.2]} 2. Nf3 {[%clk 0:02:53.1]}
2... d6 {[%clk 0:02:57.4]} 3. d4 {[%clk 0:02:52.8]} 3... cxd4 {[%clk 0:02:59.3]}
4. Nxd4 {[%clk 0:02:53.9]} 4... Nf6 {[%clk 0:03:00.5]} 5. Nc3 {[%clk 0:02:55]}
5... g6 {[%clk 0:03:01.8]} 6. Be3 {[%clk 0:02:55.6]} 6... Bg7 {[%clk 0:03:02.7]}
7. f3 {[%clk 0:02:55.5]} 7... O-O {[%clk 0:03:03.8]} 8. Qd2 {[%clk 0:02:54.8]}
8... Nc6 {[%clk 0:03:04.9]} 9. O-O-O {[%clk 0:02:55.5]} 9... d5 {[%clk
0:03:05.6]} 10. Kb1 {[%clk 0:02:56.4]} 10... Nxd4 {[%clk 0:02:30.9]} 11. e5
{[%clk 0:02:55.7]} 11... Nf5 {[%clk 0:02:30.9]} 12. exf6 {[%clk 0:02:55.6]}
12... exf6 {[%clk 0:02:31.9]} 13. Nxd5 {[%clk 0:02:55.7]} 13... Be6 {[%clk
0:02:31.8]} 14. Bc4 {[%clk 0:02:52.4]} 14... Rc8 {[%clk 0:02:26.5]} 15. Bb3
{[%clk 0:02:48.2]} 15... Bxd5 {[%clk 0:02:02.6]} 16. Bxd5 {[%clk 0:02:45]} 16...
Nxe3 {[%clk 0:02:03.4]} 17. Qxe3 {[%clk 0:02:45]} 17... Qc7 {[%clk 0:02:05.3]}
18. Bb3 {[%clk 0:02:42.3]} 18... f5 {[%clk 0:02:03.2]} 19. Rhe1 {[%clk
0:02:42.2]} 19... Qxh2 {[%clk 0:02:00.1]} 20. g4 {[%clk 0:02:37.6]} 20... Qh4
{[%clk 0:01:38.3]} 21. gxf5 {[%clk 0:02:33.3]} 21... Qf6 {[%clk 0:01:39.1]} 22.
c3 {[%clk 0:02:28.4]} 22... Qxf5+ {[%clk 0:01:40.4]} 23. Bc2 {[%clk 0:02:28.4]}
23... Qf6 {[%clk 0:01:39.1]} 24. Qxa7 {[%clk 0:02:25]} 24... Rxc3 {[%clk
0:01:37.6]} 0-1

[Event "*** Titled Tuesday Blitz"]
[Site "Chess.com"]
[Date "2018.06.05"]
[Round "6"]
[White "tan275"]
[Black "Xeniya2005"]
[Result "0-1"]
[WhiteElo "1995"]
[BlackElo "1935"]
[TimeControl "180+2"]
[EndTime "14:26:10 PDT"]
[Termination "Xeniya2005 won by resignation"]

1. d4 {[%clk 0:02:48.6]} 1... Nf6 {[%clk 0:03:00.2]} 2. c4 {[%clk 0:02:49.1]}
2... g6 {[%clk 0:03:01.3]} 3. g3 {[%clk 0:02:48.2]} 3... Bg7 {[%clk 0:03:02.1]}
4. Bg2 {[%clk 0:02:48.9]} 4... O-O {[%clk 0:03:03.2]} 5. Nf3 {[%clk 0:02:49.7]}
5... d5 {[%clk 0:03:03.9]} 6. cxd5 {[%clk 0:02:50.3]} 6... Nxd5 {[%clk
0:03:04.7]} 7. O-O {[%clk 0:02:51.9]} 7... Nc6 {[%clk 0:03:04.5]} 8. e4 {[%clk
0:02:52.6]} 8... Nb6 {[%clk 0:03:05.4]} 9. d5 {[%clk 0:02:53.9]} 9... Na5 {[%clk
0:03:06.1]} 10. Nc3 {[%clk 0:02:54.9]} 10... c6 {[%clk 0:03:06.5]} 11. Bf4
{[%clk 0:02:55.6]} 11... cxd5 {[%clk 0:03:04.9]} 12. exd5 {[%clk 0:02:53.4]}
12... Nac4 {[%clk 0:03:04.7]} 13. Qe2 {[%clk 0:02:50.5]} 13... Bg4 {[%clk
0:03:03.1]} 14. h3 {[%clk 0:02:40.8]} 14... Bxf3 {[%clk 0:03:02.4]} 15. Bxf3
{[%clk 0:02:42.7]} 15... Nxb2 {[%clk 0:02:55.1]} 16. Qxb2 {[%clk 0:02:42.1]}
16... Na4 {[%clk 0:02:55.4]} 17. Nxa4 {[%clk 0:02:42.9]} 17... Bxb2 {[%clk
0:02:55.4]} 18. Nxb2 {[%clk 0:02:44.8]} 18... Rc8 {[%clk 0:02:53.1]} 19. Rac1
{[%clk 0:02:17.1]} 19... Rxc1 {[%clk 0:02:49.8]} 20. Rxc1 {[%clk 0:02:19]} 20...
Qb6 {[%clk 0:02:47.6]} 21. Nc4 {[%clk 0:02:05.9]} 21... Qa6 {[%clk 0:02:47.1]}
22. Ne5 {[%clk 0:01:40.6]} 22... Qxa2 {[%clk 0:02:32.5]} 23. Ng4 {[%clk
0:01:34.9]} 23... h5 {[%clk 0:02:25.2]} 24. Ne5 {[%clk 0:01:21.5]} 24... Kg7
{[%clk 0:02:23.1]} 25. Nd3 {[%clk 0:00:59.4]} 25... b5 {[%clk 0:02:14.4]} 26.
Be5+ {[%clk 0:00:49.1]} 26... Kg8 {[%clk 0:02:13.9]} 27. Nc5 {[%clk 0:00:19.2]}
27... b4 {[%clk 0:02:08.3]} 28. Bd1 {[%clk 0:00:16.7]} 28... Qxd5 {[%clk
0:02:05.7]} 29. Bb2 {[%clk 0:00:14.6]} 29... Rc8 {[%clk 0:02:00.4]} 30. Bb3
{[%clk 0:00:15.2]} 30... Qd6 {[%clk 0:01:59.8]} 31. Ne4 {[%clk 0:00:12.1]} 31...
Rxc1+ {[%clk 0:01:59.9]} 32. Bxc1 {[%clk 0:00:14]} 32... Qc6 {[%clk 0:02:00.2]}
0-1